[Event "Titled Tuesday Blitz March 28 Early 2023"]
[White "Ramirez, Maria Eugenia"]
[Black "Ovezdurdyyeva, Jemal"]
[WhiteFideId "3301680"]
[BlackFideId "14001888"]
[WhiteElo "1842"]
[BlackElo "2043"]
[Result "1-0"]
[Round "11"]
[TimeControl "180+2"]
[Date "2023.03.28"]
[WhiteClock "0:00:57"]
[BlackClock "0:01:11"]

1. e4 {[%clk 0:03:00]}  d6 {[%clk 0:02:59]} 2. d4 {[%clk 0:03:00]}  Nf6 {[%clk 0:03:00]} 3. Nc3 {[%clk 0:03:00]}  g6 {[%clk 0:03:01]} 4. Nf3 {[%clk 0:02:59]}  c6 {[%clk 0:03:01]} 5. Be2 {[%clk 0:02:58]}  b5 {[%clk 0:03:02]} 6. a3 {[%clk 0:02:56]}  Bg7 {[%clk 0:03:02]} 7. O-O {[%clk 0:02:55]}  O-O {[%clk 0:03:03]} 8. h3 {[%clk 0:02:52]}  a5 {[%clk 0:03:03]} 9. e5 {[%clk 0:02:44]}  Ne8 {[%clk 0:02:59]} 10. Be3 {[%clk 0:02:38]}  Bb7 {[%clk 0:02:53]} 11. exd6 {[%clk 0:02:33]}  Nxd6 {[%clk 0:02:52]} 12. Qd2 {[%clk 0:02:26]}  Nd7 {[%clk 0:02:47]} 13. Bh6 {[%clk 0:02:23]}  Nf6 {[%clk 0:02:43]} 14. Bxg7 {[%clk 0:02:19]}  Kxg7 {[%clk 0:02:44]} 15. Rfd1 {[%clk 0:02:11]}  Qb6 {[%clk 0:02:34]} 16. Ne5 {[%clk 0:02:03]}  b4 {[%clk 0:02:30]} 17. Na4 {[%clk 0:01:56]}  Qc7 {[%clk 0:02:28]} 18. Nc5 {[%clk 0:01:54]}  Nde4 {[%clk 0:02:12]} 19. Nxe4 {[%clk 0:01:39]}  Nxe4 {[%clk 0:02:13]} 20. Qe3 {[%clk 0:01:39]}  Nf6 {[%clk 0:02:05]} 21. Bf3 {[%clk 0:01:36]}  Nd5 {[%clk 0:02:04]} 22. Bxd5 {[%clk 0:01:34]}  cxd5 {[%clk 0:02:05]} 23. c3 {[%clk 0:01:30]}  bxc3 {[%clk 0:01:59]} 24. Rac1 {[%clk 0:01:20]}  Rac8 {[%clk 0:01:45]} 25. Rxc3 {[%clk 0:01:19]}  Qd6 {[%clk 0:01:42]} 26. Nd3 {[%clk 0:01:11]}  f6 {[%clk 0:01:34]} 27. Nc5 {[%clk 0:01:10]}  Rb8 {[%clk 0:01:16]} 28. Ne6+ {[%clk 0:01:02]}  Kf7 {[%clk 0:01:10]} 29. Nxf8 {[%clk 0:01:02]}  Rxf8 {[%clk 0:01:11]} 30. Rdc1 {[%clk 0:00:59]}  Ba6 {[%clk 0:01:11]} 31. Rc6 {[%clk 0:00:57]} 1-0


[Site "https://www.chess.com"]

[Event "Titled Tuesday Blitz March 28 Early 2023"]
[White "Zampronha, Wladimir Camilo"]
[Black "lolliNOPE"]
[WhiteFideId "2103087"]
[WhiteElo "2176"]
[BlackElo "2085"]
[Result "1/2-1/2"]
[Round "11"]
[TimeControl "180+2"]
[Date "2023.03.28"]
[WhiteClock "0:00:38"]
[BlackClock "0:00:36"]

1. e4 {[%clk 0:03:00]}  c6 {[%clk 0:02:56]} 2. d4 {[%clk 0:03:00]}  d5 {[%clk 0:02:56]} 3. e5 {[%clk 0:03:01]}  Bf5 {[%clk 0:02:56]} 4. Nf3 {[%clk 0:03:01]}  e6 {[%clk 0:02:57]} 5. Be2 {[%clk 0:03:02]}  Nd7 {[%clk 0:02:57]} 6. O-O {[%clk 0:03:01]}  Ne7 {[%clk 0:02:57]} 7. Nbd2 {[%clk 0:02:58]}  c5 {[%clk 0:02:57]} 8. c3 {[%clk 0:02:55]}  Nc6 {[%clk 0:02:57]} 9. Re1 {[%clk 0:02:51]}  Be7 {[%clk 0:02:57]} 10. Bf1 {[%clk 0:02:49]}  O-O {[%clk 0:02:56]} 11. dxc5 {[%clk 0:02:48]}  Nxc5 {[%clk 0:02:54]} 12. Nb3 {[%clk 0:02:48]}  Nxb3 {[%clk 0:02:51]} 13. axb3 {[%clk 0:02:48]}  a6 {[%clk 0:02:49]} 14. Be3 {[%clk 0:02:47]}  Qc7 {[%clk 0:02:46]} 15. h3 {[%clk 0:02:36]}  Be4 {[%clk 0:02:37]} 16. Bf4 {[%clk 0:02:33]}  h6 {[%clk 0:02:31]} 17. Bd3 {[%clk 0:02:32]}  Bxd3 {[%clk 0:02:28]} 18. Qxd3 {[%clk 0:02:31]}  Rac8 {[%clk 0:02:20]} 19. b4 {[%clk 0:02:30]}  Rfd8 {[%clk 0:02:18]} 20. Qd2 {[%clk 0:02:20]}  Bf8 {[%clk 0:02:17]} 21. Nh2 {[%clk 0:02:07]}  d4 {[%clk 0:02:17]} 22. Qe2 {[%clk 0:01:57]}  dxc3 {[%clk 0:02:14]} 23. bxc3 {[%clk 0:01:56]}  Ne7 {[%clk 0:02:12]} 24. Bd2 {[%clk 0:01:50]}  Qc4 {[%clk 0:02:10]} 25. Nf3 {[%clk 0:01:48]}  Qxe2 {[%clk 0:02:09]} 26. Rxe2 {[%clk 0:01:49]}  Nd5 {[%clk 0:02:06]} 27. Be1 {[%clk 0:01:42]}  Nxc3 {[%clk 0:02:04]} 28. Bxc3 {[%clk 0:01:39]}  Rxc3 {[%clk 0:02:04]} 29. b5 {[%clk 0:01:39]}  axb5 {[%clk 0:02:04]} 30. Rb1 {[%clk 0:01:38]}  b4 {[%clk 0:02:04]} 31. Rd2 {[%clk 0:01:33]}  Rxd2 {[%clk 0:02:02]} 32. Nxd2 {[%clk 0:01:34]}  b6 {[%clk 0:01:58]} 33. Kf1 {[%clk 0:01:34]}  Rc2 {[%clk 0:01:58]} 34. Ke2 {[%clk 0:01:32]}  Bc5 {[%clk 0:01:53]} 35. f4 {[%clk 0:01:30]}  Kf8 {[%clk 0:01:45]} 36. Rb3 {[%clk 0:01:27]}  Ke7 {[%clk 0:01:42]} 37. Kd3 {[%clk 0:01:27]}  Rc1 {[%clk 0:01:37]} 38. Ne4 {[%clk 0:01:25]}  Rg1 {[%clk 0:01:34]} 39. Rb2 {[%clk 0:01:25]}  Rd1+ {[%clk 0:01:31]} 40. Ke2 {[%clk 0:01:22]}  Rd4 {[%clk 0:01:27]} 41. Kf3 {[%clk 0:01:22]}  Rd3+ {[%clk 0:01:27]} 42. Kg4 {[%clk 0:01:18]}  g6 {[%clk 0:01:20]} 43. h4 {[%clk 0:01:13]}  h5+ {[%clk 0:01:14]} 44. Kg5 {[%clk 0:01:12]}  Re3 {[%clk 0:01:13]} 45. Nf6 {[%clk 0:01:11]}  Rg3+ {[%clk 0:00:59]} 46. Kh6 {[%clk 0:01:11]}  Rd3 {[%clk 0:00:46]} 47. Ra2 {[%clk 0:01:11]}  b3 {[%clk 0:00:45]} 48. Ra8 {[%clk 0:01:10]}  Rd8 {[%clk 0:00:42]} 49. Ra7+ {[%clk 0:01:11]}  Kf8 {[%clk 0:00:42]} 50. Nh7+ {[%clk 0:01:05]}  Kg8 {[%clk 0:00:36]} 51. Nf6+ {[%clk 0:01:05]}  Kf8 {[%clk 0:00:36]} 52. Nh7+ {[%clk 0:00:40]}  Kg8 {[%clk 0:00:36]} 53. Nf6+ {[%clk 0:00:38]}  Kf8 {[%clk 0:00:36]} 1/2-1/2


[Site "https://www.chess.com"]

[Event "Titled Tuesday Blitz March 28 Early 2023"]
[White "rionelG"]
[Black "Jiganchine, Roman"]
[BlackFideId "2603667"]
[WhiteElo "2225"]
[BlackElo "2323"]
[Result "1/2-1/2"]
[Round "11"]
[TimeControl "180+2"]
[Date "2023.03.28"]
[WhiteClock "0:00:03"]
[BlackClock "0:00:10"]

1. e4 {[%clk 0:02:59]}  c6 {[%clk 0:02:55]} 2. d4 {[%clk 0:02:58]}  d5 {[%clk 0:02:54]} 3. e5 {[%clk 0:02:59]}  Bf5 {[%clk 0:02:49]} 4. Nf3 {[%clk 0:02:58]}  e6 {[%clk 0:02:48]} 5. Be2 {[%clk 0:02:58]}  Nd7 {[%clk 0:02:42]} 6. O-O {[%clk 0:02:54]}  h6 {[%clk 0:02:41]} 7. Nbd2 {[%clk 0:02:50]}  a6 {[%clk 0:02:41]} 8. a4 {[%clk 0:02:43]}  Rc8 {[%clk 0:02:40]} 9. Nb3 {[%clk 0:02:39]}  c5 {[%clk 0:02:40]} 10. dxc5 {[%clk 0:02:37]}  Nxc5 {[%clk 0:02:40]} 11. Be3 {[%clk 0:02:35]}  Nxb3 {[%clk 0:02:34]} 12. cxb3 {[%clk 0:02:36]}  Bc2 {[%clk 0:02:30]} 13. Qd2 {[%clk 0:02:30]}  Bxb3 {[%clk 0:02:30]} 14. Rfc1 {[%clk 0:02:28]}  Ne7 {[%clk 0:02:26]} 15. Rxc8 {[%clk 0:02:27]}  Nxc8 {[%clk 0:02:23]} 16. Qc3 {[%clk 0:02:11]}  Bc4 {[%clk 0:02:10]} 17. Bxc4 {[%clk 0:02:10]}  dxc4 {[%clk 0:02:11]} 18. Qxc4 {[%clk 0:02:09]}  Be7 {[%clk 0:02:11]} 19. Qg4 {[%clk 0:02:06]}  g6 {[%clk 0:02:00]} 20. Nd4 {[%clk 0:01:52]}  Qd5 {[%clk 0:01:44]} 21. Rd1 {[%clk 0:01:47]}  h5 {[%clk 0:01:35]} 22. Qe2 {[%clk 0:01:36]}  Qxe5 {[%clk 0:01:19]} 23. Qf3 {[%clk 0:01:23]}  Qd5 {[%clk 0:01:08]} 24. Qxd5 {[%clk 0:01:05]}  exd5 {[%clk 0:01:08]} 25. Nf3 {[%clk 0:01:03]}  Bf6 {[%clk 0:01:03]} 26. Rxd5 {[%clk 0:00:55]}  Bxb2 {[%clk 0:00:59]} 27. h4 {[%clk 0:00:55]}  O-O {[%clk 0:00:57]} 28. Rd7 {[%clk 0:00:42]}  b6 {[%clk 0:00:55]} 29. Ng5 {[%clk 0:00:34]}  Bf6 {[%clk 0:00:52]} 30. Rb7 {[%clk 0:00:32]}  b5 {[%clk 0:00:43]} 31. axb5 {[%clk 0:00:30]}  axb5 {[%clk 0:00:42]} 32. Rxb5 {[%clk 0:00:30]}  Nd6 {[%clk 0:00:39]} 33. Rb6 {[%clk 0:00:29]}  Bxg5 {[%clk 0:00:33]} 34. Bxg5 {[%clk 0:00:28]}  Nf5 {[%clk 0:00:31]} 35. Bf6 {[%clk 0:00:24]}  Re8 {[%clk 0:00:31]} 36. g3 {[%clk 0:00:23]}  Ng7 {[%clk 0:00:29]} 37. Kg2 {[%clk 0:00:21]}  Ne6 {[%clk 0:00:29]} 38. Rb7 {[%clk 0:00:19]}  Nc5 {[%clk 0:00:29]} 39. Rb4 {[%clk 0:00:18]}  Nd7 {[%clk 0:00:28]} 40. Bd4 {[%clk 0:00:18]}  Ne5 {[%clk 0:00:27]} 41. Rb3 {[%clk 0:00:13]}  Nc6 {[%clk 0:00:26]} 42. Bf6 {[%clk 0:00:12]}  Kf8 {[%clk 0:00:21]} 43. Rb6 {[%clk 0:00:11]}  Nd8 {[%clk 0:00:19]} 44. Rb5 {[%clk 0:00:10]}  Ne6 {[%clk 0:00:19]} 45. Rb7 {[%clk 0:00:09]}  Kg8 {[%clk 0:00:20]} 46. Ra7 {[%clk 0:00:09]}  Nc5 {[%clk 0:00:20]} 47. Kf3 {[%clk 0:00:08]}  Ne6 {[%clk 0:00:19]} 48. g4 {[%clk 0:00:07]}  hxg4+ {[%clk 0:00:19]} 49. Kxg4 {[%clk 0:00:08]}  Nc5 {[%clk 0:00:19]} 50. f4 {[%clk 0:00:08]}  Ne4 {[%clk 0:00:19]} 51. Bd4 {[%clk 0:00:08]}  Nd6 {[%clk 0:00:19]} 52. Be5 {[%clk 0:00:07]}  Nf5 {[%clk 0:00:19]} 53. h5 {[%clk 0:00:07]}  Ne3+ {[%clk 0:00:18]} 54. Kf3 {[%clk 0:00:07]}  Nf5 {[%clk 0:00:18]} 55. hxg6 {[%clk 0:00:07]}  fxg6 {[%clk 0:00:18]} 56. Kg4 {[%clk 0:00:08]}  Rf8 {[%clk 0:00:17]} 57. Kg5 {[%clk 0:00:08]}  Re8 {[%clk 0:00:14]} 58. Kxg6 {[%clk 0:00:07]}  Ne7+ {[%clk 0:00:14]} 59. Kg5 {[%clk 0:00:06]}  Nd5 {[%clk 0:00:13]} 60. Rg7+ {[%clk 0:00:06]}  Kf8 {[%clk 0:00:13]} 61. Kh6 {[%clk 0:00:05]}  Re6+ {[%clk 0:00:13]} 62. Kh7 {[%clk 0:00:06]}  Nf6+ {[%clk 0:00:13]} 63. Kh8 {[%clk 0:00:05]}  Nd5 {[%clk 0:00:10]} 64. Rd7 {[%clk 0:00:04]}  Rh6+ {[%clk 0:00:10]} 65. Rh7 {[%clk 0:00:03]}  Rxh7+ {[%clk 0:00:10]} 66. Kxh7 {[%clk 0:00:03]}  Kf7 {[%clk 0:00:10]} 67. Kh6 {[%clk 0:00:03]}  Nxf4 {[%clk 0:00:10]} 1/2-1/2


[Site "https://www.chess.com"]

[Event "Titled Tuesday Blitz March 28 Early 2023"]
[White "salgadoLO"]
[Black "Ardila, Oscar Humberto"]
[BlackFideId "4404742"]
[WhiteElo "2213"]
[BlackElo "1911"]
[Result "0-1"]
[Round "11"]
[TimeControl "180+2"]
[Date "2023.03.28"]
[WhiteClock "0:00:01"]
[BlackClock "0:01:06"]

1. d4 {[%clk 0:03:00]}  Nf6 {[%clk 0:02:59]} 2. Bg5 {[%clk 0:02:59]}  e6 {[%clk 0:02:59]} 3. Nd2 {[%clk 0:02:58]}  Be7 {[%clk 0:02:59]} 4. e4 {[%clk 0:02:58]}  O-O {[%clk 0:02:58]} 5. Bd3 {[%clk 0:02:58]}  c5 {[%clk 0:02:57]} 6. e5 {[%clk 0:02:53]}  Nd5 {[%clk 0:02:57]} 7. Bxe7 {[%clk 0:02:54]}  Qxe7 {[%clk 0:02:57]} 8. dxc5 {[%clk 0:02:16]}  Nc6 {[%clk 0:02:54]} 9. Ngf3 {[%clk 0:02:04]}  h6 {[%clk 0:02:42]} 10. O-O {[%clk 0:01:54]}  Qxc5 {[%clk 0:02:38]} 11. g3 {[%clk 0:01:45]}  Ncb4 {[%clk 0:02:35]} 12. Ne4 {[%clk 0:01:44]}  Qb6 {[%clk 0:02:33]} 13. Bc4 {[%clk 0:01:37]}  Qc7 {[%clk 0:02:30]} 14. Bb3 {[%clk 0:01:37]}  a5 {[%clk 0:02:30]} 15. c3 {[%clk 0:01:33]}  a4 {[%clk 0:02:23]} 16. Bxa4 {[%clk 0:01:32]}  Nc6 {[%clk 0:02:19]} 17. Bc2 {[%clk 0:01:29]}  Nxe5 {[%clk 0:02:16]} 18. Nxe5 {[%clk 0:01:22]}  Qxe5 {[%clk 0:02:17]} 19. Qd3 {[%clk 0:01:20]}  f5 {[%clk 0:02:14]} 20. Nd2 {[%clk 0:01:18]}  b6 {[%clk 0:02:11]} 21. a3 {[%clk 0:01:11]}  Ba6 {[%clk 0:02:11]} 22. c4 {[%clk 0:01:11]}  Rac8 {[%clk 0:02:08]} 23. Rfe1 {[%clk 0:00:55]}  Qxb2 {[%clk 0:02:07]} 24. Rab1 {[%clk 0:00:46]}  Qc3 {[%clk 0:02:06]} 25. Qxc3 {[%clk 0:00:42]}  Nxc3 {[%clk 0:02:04]} 26. Rxb6 {[%clk 0:00:43]}  Bxc4 {[%clk 0:02:04]} 27. Nxc4 {[%clk 0:00:41]}  Rxc4 {[%clk 0:02:03]} 28. Bb3 {[%clk 0:00:35]}  Rc7 {[%clk 0:01:59]} 29. Ra1 {[%clk 0:00:31]}  Ra8 {[%clk 0:01:53]} 30. Rd6 {[%clk 0:00:24]}  Nb5 {[%clk 0:01:50]} 31. Rd3 {[%clk 0:00:16]}  Rxa3 {[%clk 0:01:40]} 32. Rxa3 {[%clk 0:00:15]}  Nxa3 {[%clk 0:01:40]} 33. Bxe6+ {[%clk 0:00:16]}  dxe6 {[%clk 0:01:39]} 34. Rxa3 {[%clk 0:00:17]}  Kf7 {[%clk 0:01:39]} 35. h4 {[%clk 0:00:17]}  g5 {[%clk 0:01:38]} 36. hxg5 {[%clk 0:00:16]}  hxg5 {[%clk 0:01:37]} 37. Ra4 {[%clk 0:00:17]}  Kf6 {[%clk 0:01:37]} 38. Kg2 {[%clk 0:00:17]}  Rc3 {[%clk 0:01:37]} 39. Rb4 {[%clk 0:00:18]}  Rc2 {[%clk 0:01:30]} 40. Ra4 {[%clk 0:00:18]}  g4 {[%clk 0:01:30]} 41. Rb4 {[%clk 0:00:18]}  e5 {[%clk 0:01:29]} 42. Rb6+ {[%clk 0:00:18]}  Kg5 {[%clk 0:01:29]} 43. Re6 {[%clk 0:00:17]}  e4 {[%clk 0:01:28]} 44. Re8 {[%clk 0:00:17]}  Ra2 {[%clk 0:01:27]} 45. Kg1 {[%clk 0:00:17]}  Kf6 {[%clk 0:01:25]} 46. Rf8+ {[%clk 0:00:16]}  Ke6 {[%clk 0:01:25]} 47. Re8+ {[%clk 0:00:16]}  Kd6 {[%clk 0:01:23]} 48. Rf8 {[%clk 0:00:16]}  Ra5 {[%clk 0:01:22]} 49. Re8 {[%clk 0:00:14]}  Kd5 {[%clk 0:01:22]} 50. Rf8 {[%clk 0:00:12]}  Kd4 {[%clk 0:01:22]} 51. Re8 {[%clk 0:00:10]}  Kd3 {[%clk 0:01:21]} 52. Kg2 {[%clk 0:00:09]}  Ke2 {[%clk 0:01:21]} 53. Re7 {[%clk 0:00:06]}  Rd5 {[%clk 0:01:16]} 54. Re8 {[%clk 0:00:06]}  Ke1 {[%clk 0:01:11]} 55. Re7 {[%clk 0:00:06]}  Rd2 {[%clk 0:01:11]} 56. Re5 {[%clk 0:00:04]}  Rxf2+ {[%clk 0:01:11]} 57. Kg1 {[%clk 0:00:04]}  Rf3 {[%clk 0:01:11]} 58. Kg2 {[%clk 0:00:03]}  Ke2 {[%clk 0:01:11]} 59. Ra5 {[%clk 0:00:03]}  e3 {[%clk 0:01:09]} 60. Ra2+ {[%clk 0:00:02]}  Kd3 {[%clk 0:01:10]} 61. Ra3+ {[%clk 0:00:02]}  Ke4 {[%clk 0:01:10]} 62. Ra4+ {[%clk 0:00:03]}  Ke5 {[%clk 0:01:10]} 63. Ra5+ {[%clk 0:00:03]}  Kf6 {[%clk 0:01:10]} 64. Ra6+ {[%clk 0:00:04]}  Kg5 {[%clk 0:01:10]} 65. Re6 {[%clk 0:00:04]}  f4 {[%clk 0:01:07]} 66. gxf4+ {[%clk 0:00:02]}  Kxf4 {[%clk 0:01:07]} 67. Re8 {[%clk 0:00:02]}  Rf2+ {[%clk 0:01:07]} 68. Kg1 {[%clk 0:00:02]}  Ra2 {[%clk 0:01:07]} 69. Rf8+ {[%clk 0:00:01]}  Kg3 {[%clk 0:01:07]} 70. Re8 {[%clk 0:00:01]}  Ra1# {[%clk 0:01:06]} 0-1


[Site "https://www.chess.com"]

[Event "Titled Tuesday Blitz March 28 Early 2023"]
[White "Aanna12"]
[Black "Floresvillar Gonzalez, Luis Migu"]
[BlackFideId "5100542"]
[WhiteElo "2193"]
[BlackElo "2040"]
[Result "1-0"]
[Round "11"]
[TimeControl "180+2"]
[Date "2023.03.28"]
[WhiteClock "0:00:41"]
[BlackClock "0:00:35"]

1. e4 {[%clk 0:03:00]}  c6 {[%clk 0:02:57]} 2. d3 {[%clk 0:02:58]}  d5 {[%clk 0:02:57]} 3. Nd2 {[%clk 0:02:58]}  Nf6 {[%clk 0:02:52]} 4. g3 {[%clk 0:02:53]}  e5 {[%clk 0:02:51]} 5. Bg2 {[%clk 0:02:53]}  Bg4 {[%clk 0:02:51]} 6. Ngf3 {[%clk 0:02:53]}  Nbd7 {[%clk 0:02:49]} 7. O-O {[%clk 0:02:52]}  Bc5 {[%clk 0:02:48]} 8. h3 {[%clk 0:02:51]}  Bh5 {[%clk 0:02:44]} 9. c3 {[%clk 0:02:51]}  b5 {[%clk 0:02:39]} 10. b4 {[%clk 0:02:45]}  Bb6 {[%clk 0:02:37]} 11. a4 {[%clk 0:02:45]}  a6 {[%clk 0:02:35]} 12. Qc2 {[%clk 0:02:43]}  Bxf3 {[%clk 0:02:33]} 13. Nxf3 {[%clk 0:02:42]}  dxe4 {[%clk 0:02:25]} 14. dxe4 {[%clk 0:02:42]}  O-O {[%clk 0:02:26]} 15. Re1 {[%clk 0:02:28]}  Qe7 {[%clk 0:02:25]} 16. Nh4 {[%clk 0:02:15]}  g6 {[%clk 0:02:21]} 17. Bg5 {[%clk 0:02:08]}  Kg7 {[%clk 0:02:20]} 18. Qc1 {[%clk 0:02:01]}  Rh8 {[%clk 0:02:18]} 19. Bh6+ {[%clk 0:02:00]}  Kg8 {[%clk 0:02:18]} 20. Nf3 {[%clk 0:01:59]}  Rd8 {[%clk 0:01:56]} 21. axb5 {[%clk 0:01:58]}  axb5 {[%clk 0:01:55]} 22. Rd1 {[%clk 0:01:57]}  Nf8 {[%clk 0:01:48]} 23. Rxd8 {[%clk 0:01:55]}  Qxd8 {[%clk 0:01:47]} 24. Qc2 {[%clk 0:01:51]}  Ne6 {[%clk 0:01:46]} 25. Nxe5 {[%clk 0:01:42]}  Qc7 {[%clk 0:01:33]} 26. Ra8+ {[%clk 0:01:38]}  Nd8 {[%clk 0:01:30]} 27. Qd3 {[%clk 0:01:27]}  Qxe5 {[%clk 0:01:21]} 28. Rxd8+ {[%clk 0:01:24]}  Bxd8 {[%clk 0:01:21]} 29. Qxd8+ {[%clk 0:01:24]}  Ne8 {[%clk 0:01:17]} 30. Bf3 {[%clk 0:01:16]}  f6 {[%clk 0:01:11]} 31. Bf4 {[%clk 0:01:01]}  Qe6 {[%clk 0:01:08]} 32. Bg4 {[%clk 0:00:56]}  f5 {[%clk 0:01:03]} 33. exf5 {[%clk 0:00:53]}  gxf5 {[%clk 0:01:04]} 34. Bh5 {[%clk 0:00:51]}  Kg7 {[%clk 0:00:46]} 35. Qg5+ {[%clk 0:00:42]}  Qg6 {[%clk 0:00:35]} 36. Bxg6 {[%clk 0:00:41]} 1-0


[Site "https://www.chess.com"]

[Event "Titled Tuesday Blitz March 28 Early 2023"]
[White "Estremera Panos, Sergio"]
[Black "Barria Santos, Jose Guilherme"]
[WhiteFideId "2200864"]
[BlackFideId "1939300"]
[WhiteElo "2253"]
[BlackElo "2301"]
[Result "1/2-1/2"]
[Round "11"]
[TimeControl "180+2"]
[Date "2023.03.28"]
[WhiteClock "0:00:35"]
[BlackClock "0:00:02"]

1. d4 {[%clk 0:02:57]}  d5 {[%clk 0:02:54]} 2. c4 {[%clk 0:02:57]}  e6 {[%clk 0:02:54]} 3. Nc3 {[%clk 0:02:57]}  Nf6 {[%clk 0:02:54]} 4. cxd5 {[%clk 0:02:58]}  exd5 {[%clk 0:02:54]} 5. Bg5 {[%clk 0:02:58]}  Be7 {[%clk 0:02:51]} 6. e3 {[%clk 0:02:59]}  O-O {[%clk 0:02:50]} 7. Bd3 {[%clk 0:03:00]}  Nbd7 {[%clk 0:02:42]} 8. Qc2 {[%clk 0:02:59]}  Re8 {[%clk 0:02:39]} 9. Nf3 {[%clk 0:02:54]}  Nf8 {[%clk 0:02:37]} 10. Ne5 {[%clk 0:02:52]}  c6 {[%clk 0:02:30]} 11. O-O {[%clk 0:02:52]}  N6d7 {[%clk 0:02:01]} 12. Bxe7 {[%clk 0:02:36]}  Qxe7 {[%clk 0:01:59]} 13. Rae1 {[%clk 0:02:28]}  Nxe5 {[%clk 0:01:56]} 14. dxe5 {[%clk 0:02:23]}  Qxe5 {[%clk 0:01:55]} 15. Ne2 {[%clk 0:02:22]}  Ng6 {[%clk 0:01:40]} 16. Nd4 {[%clk 0:02:18]}  Bd7 {[%clk 0:01:19]} 17. f4 {[%clk 0:02:12]}  Qd6 {[%clk 0:01:06]} 18. f5 {[%clk 0:02:12]}  Ne5 {[%clk 0:01:03]} 19. f6 {[%clk 0:02:12]}  g6 {[%clk 0:00:42]} 20. h4 {[%clk 0:01:35]}  Ng4 {[%clk 0:00:40]} 21. Nf3 {[%clk 0:01:32]}  Nxe3 {[%clk 0:00:37]} 22. Rxe3 {[%clk 0:01:31]}  Rxe3 {[%clk 0:00:38]} 23. Ng5 {[%clk 0:01:31]}  Qg3 {[%clk 0:00:23]} 24. Qd2 {[%clk 0:01:02]}  Rxd3 {[%clk 0:00:20]} 25. Qe2 {[%clk 0:00:59]}  Qe3+ {[%clk 0:00:16]} 26. Qxe3 {[%clk 0:00:59]}  Rxe3 {[%clk 0:00:17]} 27. h5 {[%clk 0:00:59]}  Rae8 {[%clk 0:00:14]} 28. hxg6 {[%clk 0:00:59]}  hxg6 {[%clk 0:00:15]} 29. Rf4 {[%clk 0:00:58]}  R8e5 {[%clk 0:00:15]} 30. Nf3 {[%clk 0:00:57]}  Rf5 {[%clk 0:00:12]} 31. Rb4 {[%clk 0:00:53]}  Bc8 {[%clk 0:00:11]} 32. Nd4 {[%clk 0:00:51]}  Rxf6 {[%clk 0:00:10]} 33. Nb3 {[%clk 0:00:52]}  Rfe6 {[%clk 0:00:09]} 34. Nc5 {[%clk 0:00:52]}  Re1+ {[%clk 0:00:09]} 35. Kf2 {[%clk 0:00:53]}  R6e2+ {[%clk 0:00:09]} 36. Kf3 {[%clk 0:00:54]}  Re7 {[%clk 0:00:07]} 37. Nd3 {[%clk 0:00:54]}  R1e3+ {[%clk 0:00:06]} 38. Kf2 {[%clk 0:00:54]}  Rxd3 {[%clk 0:00:07]} 39. Rf4 {[%clk 0:00:54]}  Rd2+ {[%clk 0:00:07]} 40. Kf1 {[%clk 0:00:54]}  Rd1+ {[%clk 0:00:07]} 41. Kf2 {[%clk 0:00:54]}  Rb1 {[%clk 0:00:06]} 42. Rb4 {[%clk 0:00:54]}  Re6 {[%clk 0:00:05]} 43. Rb3 {[%clk 0:00:55]}  Rf6+ {[%clk 0:00:05]} 44. Ke3 {[%clk 0:00:55]}  Rf5 {[%clk 0:00:05]} 45. Kd4 {[%clk 0:00:55]}  Rg5 {[%clk 0:00:05]} 46. Kc5 {[%clk 0:00:55]}  Rc1+ {[%clk 0:00:02]} 47. Kb4 {[%clk 0:00:53]}  Rg1 {[%clk 0:00:03]} 48. Re3 {[%clk 0:00:54]}  R1xg2 {[%clk 0:00:04]} 49. Re8+ {[%clk 0:00:54]}  Kg7 {[%clk 0:00:05]} 50. Rxc8 {[%clk 0:00:55]}  R2g4+ {[%clk 0:00:05]} 51. Kb3 {[%clk 0:00:54]}  Rg2 {[%clk 0:00:06]} 52. a3 {[%clk 0:00:55]}  R5g3+ {[%clk 0:00:07]} 53. Ka2 {[%clk 0:00:55]}  Rg1 {[%clk 0:00:07]} 54. Rb8 {[%clk 0:00:55]}  Rc1 {[%clk 0:00:06]} 55. Rxb7 {[%clk 0:00:56]}  Rg2 {[%clk 0:00:07]} 56. Rxa7 {[%clk 0:00:55]}  Rcc2 {[%clk 0:00:07]} 57. Rb7 {[%clk 0:00:56]}  d4 {[%clk 0:00:08]} 58. a4 {[%clk 0:00:56]}  Rxb2+ {[%clk 0:00:08]} 59. Rxb2 {[%clk 0:00:55]}  Rxb2+ {[%clk 0:00:09]} 60. Kxb2 {[%clk 0:00:56]}  g5 {[%clk 0:00:10]} 61. a5 {[%clk 0:00:56]}  g4 {[%clk 0:00:11]} 62. a6 {[%clk 0:00:57]}  g3 {[%clk 0:00:11]} 63. a7 {[%clk 0:00:57]}  g2 {[%clk 0:00:12]} 64. a8=Q {[%clk 0:00:57]}  g1=Q {[%clk 0:00:13]} 65. Qxc6 {[%clk 0:00:56]}  Qf2+ {[%clk 0:00:13]} 66. Kb1 {[%clk 0:00:54]}  Qe1+ {[%clk 0:00:13]} 67. Ka2 {[%clk 0:00:54]}  Qd2+ {[%clk 0:00:13]} 68. Kb1 {[%clk 0:00:55]}  Qe3 {[%clk 0:00:13]} 69. Qd7 {[%clk 0:00:52]}  Qd3+ {[%clk 0:00:12]} 70. Ka2 {[%clk 0:00:51]}  Qc2+ {[%clk 0:00:12]} 71. Ka1 {[%clk 0:00:50]}  Qc3+ {[%clk 0:00:12]} 72. Ka2 {[%clk 0:00:51]}  d3 {[%clk 0:00:12]} 73. Qg4+ {[%clk 0:00:50]}  Kf8 {[%clk 0:00:12]} 74. Qg5 {[%clk 0:00:45]}  Qc2+ {[%clk 0:00:12]} 75. Ka1 {[%clk 0:00:44]}  Qc3+ {[%clk 0:00:11]} 76. Ka2 {[%clk 0:00:44]}  Qc4+ {[%clk 0:00:11]} 77. Kb1 {[%clk 0:00:43]}  Qb3+ {[%clk 0:00:11]} 78. Ka1 {[%clk 0:00:43]}  Qa3+ {[%clk 0:00:09]} 79. Kb1 {[%clk 0:00:43]}  Qb4+ {[%clk 0:00:09]} 80. Kc1 {[%clk 0:00:40]}  Qe1+ {[%clk 0:00:07]} 81. Kb2 {[%clk 0:00:39]}  d2 {[%clk 0:00:07]} 82. Qd8+ {[%clk 0:00:38]}  Kg7 {[%clk 0:00:08]} 83. Qg5+ {[%clk 0:00:39]}  Kf8 {[%clk 0:00:08]} 84. Qd8+ {[%clk 0:00:39]}  Kg7 {[%clk 0:00:04]} 85. Qg5+ {[%clk 0:00:38]}  Kh8 {[%clk 0:00:04]} 86. Qf6+ {[%clk 0:00:35]}  Kg8 {[%clk 0:00:03]} 87. Qg5+ {[%clk 0:00:35]}  Kf8 {[%clk 0:00:02]} 1/2-1/2


[Site "https://www.chess.com"]